fUST/lending_fUST_20250809
["ID","MTS","AMOUNT","RATE_DAILY","PERIOD"]
[378081556,1754718644975,-460.0,0.00022191,2]
[378081558,1754718644985,-466.69792978,0.00022191,2]
[378081560,1754718644994,-466.24746268,0.00022191,2]
[378081562,1754718645003,-460.0,0.00022191,2]
[378081564,1754718645012,-460.0,0.00022191,2]
[378081566,1754718645022,-460.0,0.00022191,2]
[378081568,1754718645032,-461.44938781,0.00022191,2]
[378081570,1754718645041,-460.0,0.00022191,2]
[378081572,1754718645052,-191.23939905,0.00022191,2]
[378081574,1754718645061,-460.0,0.00022191,2]
[378081576,1754718645072,-460.0,0.00022191,2]
[378081578,1754718645082,-460.0,0.00022191,2]
[378081580,1754718645091,-460.0,0.00022191,2]
[378081582,1754718645100,-460.0,0.00022191,2]
[378081584,1754718645111,-460.0,0.00022191,2]
[378081586,1754718645124,-460.0,0.00022191,2]
[378081588,1754718645134,-460.0,0.00022191,2]
[378081590,1754718645143,-460.0,0.00022191,2]
[378081592,1754718645153,-610.73,0.00022191,2]
[378081594,1754718645162,-460.0,0.00022191,2]
[378081596,1754718645172,-460.0,0.00022191,2]
[378081598,1754718645181,-460.0,0.00022191,2]
[378081600,1754718645191,-460.0,0.00022191,2]
[378081602,1754718645200,-460.0,0.00022191,2]
[378081604,1754718645209,-460.0,0.00022191,2]
[378081606,1754718645219,-460.0,0.00022191,2]
[378081608,1754718645228,-460.0,0.00022191,2]
[378081610,1754718645237,-460.0,0.00022191,2]
[378081613,1754718645247,-460.0,0.00022191,2]
[378081615,1754718645256,-460.0,0.00022191,2]
[378081616,1754718645265,-460.0,0.00022191,2]
[378081619,1754718645275,-460.0,0.00022191,2]
[378081621,1754718645284,-667.01,0.00022191,2]
[378081622,1754718645293,-460.0,0.00022191,2]
[378081625,1754718645303,-460.0,0.00022191,2]
[378081627,1754718645312,-460.0,0.00022191,2]
[378081629,1754718645323,-460.0,0.00022191,2]
[378081631,1754718645332,-460.0,0.00022191,2]
[378081633,1754718645341,-460.0,0.00022191,2]
[378081635,1754718645352,-460.0,0.00022191,2]
[378081637,1754718645361,-460.0,0.00022191,2]
[378081639,1754718645371,-460.0,0.00022191,2]
[378081641,1754718645380,-460.0,0.00022191,2]
[378081643,1754718645390,-460.0,0.00022191,2]
[378081645,1754718645400,-482.96751032,0.00022191,2]
[378081647,1754718645409,-460.0,0.00022191,2]
[378081649,1754718645418,-434.59611317,0.00022191,2]
[378081651,1754718645428,-460.0,0.00022191,2]
[378081653,1754718645437,-460.0,0.00022191,2]
[378081655,1754718645446,-460.0,0.00022191,2]
[378081657,1754718645455,-460.0,0.00022191,2]
[378081659,1754718645464,-491.48156457,0.00022191,2]
[378081660,1754718645473,-460.0,0.00022191,2]
[378081663,1754718645483,-460.0,0.00022191,2]
[378081665,1754718645493,-460.0,0.00022191,2]
[378081667,1754718645502,-460.0,0.00022191,2]
[378081669,1754718645511,-460.0,0.00022191,2]
[378081671,1754718645520,-460.0,0.00022191,2]
[378081672,1754718645530,-460.0,0.00022191,2]
[378081674,1754718645539,-460.0,0.00022191,2]
[378081676,1754718645548,-460.0,0.00022191,2]
[378081679,1754718645558,-488.33045073,0.00022191,2]
[378081681,1754718645567,-479.70448162,0.00022191,2]
[378081682,1754718645576,-461.41951935,0.00022191,2]
[378081685,1754718645585,-460.0,0.00022191,2]
[378081686,1754718645595,-460.0,0.00022191,2]
[378081688,1754718645605,-460.0,0.00022191,2]
[378081690,1754718645614,-466.1103765,0.00022191,2]
[378081692,1754718645623,-460.0,0.00022191,2]
[378081694,1754718645632,-460.0,0.00022191,2]
[378081696,1754718645641,-460.0,0.00022191,2]
[378081698,1754718645650,-460.0,0.00022191,2]
[378081700,1754718645660,-460.0,0.00022191,2]
[378081702,1754718645669,-460.0,0.00022191,2]
[378081704,1754718645678,-460.0,0.00022191,2]
[378081706,1754718645687,-940.82,0.00022191,2]
[378081709,1754718645696,-460.0,0.00022191,2]
[378081711,1754718645706,-861.6,0.00022191,2]
[378081713,1754718645715,-837.05,0.00022191,2]
[378081714,1754718645724,-460.0,0.00022191,2]
[378081716,1754718645734,-460.0,0.00022191,2]
[378081718,1754718645743,-460.0,0.00022191,2]
[378081722,1754718645753,-460.0,0.00022191,2]
[378081724,1754718645762,-1005.24,0.00022191,2]
[378081726,1754718645772,-463.32589812,0.00022191,2]
[378081728,1754718645781,-575.98,0.00022191,2]
[378081730,1754718645791,-460.0,0.00022191,2]
[378081732,1754718645800,-460.0,0.00022191,2]
[378081734,1754718645810,-479.73702243,0.00022191,2]
[378081736,1754718645818,-460.0,0.00022191,2]
[378081738,1754718645829,-460.0,0.00022191,2]
[378081739,1754718645838,-1889.53,0.00022191,2]
[378081742,1754718645847,-460.0,0.00022191,2]
[378081743,1754718645859,-460.0,0.00022191,2]
[378081745,1754718645868,-154.23702444,0.00022191,2]
[378081747,1754718645877,-460.0,0.00022191,2]
[378081748,1754718645888,-460.0,0.00022191,2]
[378081749,1754718645900,-545.75,0.00022191,2]
[378081750,1754718645910,-460.0,0.00022191,2]
[378081751,1754718645919,-465.5,0.00022191,2]
[378081752,1754718645929,-560.62,0.00022191,2]
[378081753,1754718645938,-500.0,0.00022191,2]
[378081754,1754718645947,-460.0,0.00022191,2]
[378081755,1754718645957,-535.97559878,0.00022191,2]
[378081756,1754718645967,-460.0,0.00022191,2]
[378081757,1754718645980,-460.0,0.00022191,2]
[378081758,1754718645989,-460.66004341,0.00022191,2]
[378081760,1754718645999,-460.0,0.00022191,2]
[378081762,1754718646008,-581.94115662,0.00022191,2]
[378081764,1754718646018,-413.22875271,0.00022191,2]
[378081766,1754718646028,-460.0,0.00022191,2]
[378081768,1754718646038,-460.0,0.00022191,2]
[378081770,1754718646048,-460.0,0.00022191,2]
[378081771,1754718646061,-985.45,0.00022191,2]
[378081772,1754718646070,-478.96,0.00022191,2]
[378081773,1754718646080,-460.74809788,0.00022191,2]
[378081775,1754718646089,-463.54229539,0.00022191,2]
[378081777,1754718646099,-460.0,0.00022191,2]
[378081779,1754718646110,-460.0,0.00022191,2]
[378081781,1754718646119,-461.19412888,0.00022191,2]
[378081783,1754718646129,-1794.59,0.00022191,2]
[378081786,1754718646138,-460.0,0.00022191,2]
[378081787,1754718646147,-460.0,0.00022191,2]
[378081789,1754718646157,-464.25032853,0.00022191,2]
[378081791,1754718646166,-460.0,0.00022191,2]
[378081793,1754718646175,-460.0,0.00022191,2]
[378081795,1754718646185,-532.69,0.00022191,2]
[378081797,1754718646194,-1214.97,0.00022191,2]
[378081799,1754718646204,-460.0,0.00022191,2]
[378081801,1754718646214,-461.36797198,0.00022191,2]
[378081803,1754718646223,-460.0,0.00022191,2]
[378081805,1754718646233,-460.0,0.00022191,2]
[378081807,1754718646242,-460.0,0.00022191,2]
[378081809,1754718646252,-4089.86,0.00022191,2]
[378081811,1754718646261,-460.0,0.00022191,2]
[378081813,1754718646271,-460.0,0.00022191,2]
[378081815,1754718646281,-460.0,0.00022191,2]
[378081817,1754718646290,-460.0,0.00022191,2]
[378081819,1754718646299,-460.0,0.00022191,2]
[378081821,1754718646308,-460.0,0.00022191,2]
[378081823,1754718646317,-487.05234229,0.00022191,2]
[378081825,1754718646326,-460.0,0.00022191,2]
[378081827,1754718646335,-460.0,0.00022191,2]
[378081829,1754718646344,-460.0,0.00022191,2]
[378081842,1754718646467,-460.0,0.00022191,2]
[378081844,1754718646478,-460.0,0.00022191,2]
[378081846,1754718646488,-460.0,0.00022191,2]
[378081848,1754718646497,-645.49,0.00022191,2]
[378081850,1754718646508,-460.0,0.00022191,2]
[378081852,1754718646517,-594.50041956,0.00022191,2]
[378081854,1754718646526,-462.5353697,0.00022191,2]
[378081857,1754718646537,-570.5940463,0.00022191,2]
[378081858,1754718646546,-1659.93,0.00022191,2]
[378081861,1754718646557,-460.0,0.00022191,2]
[378081863,1754718646565,-1498.54,0.00022191,2]
[378081864,1754718646578,-460.0,0.00022191,2]
[378081866,1754718646588,-460.0,0.00022191,2]
[378081868,1754718646597,-460.0,0.00022191,2]
[378081870,1754718646607,-460.0,0.00022191,2]
[378081872,1754718646616,-460.0,0.00022191,2]
[378081874,1754718646625,-460.0,0.00022191,2]
[378081876,1754718646634,-460.0,0.00022191,2]
[378081878,1754718646643,-603.58850228,0.00022191,2]
[378081880,1754718646652,-460.0,0.00022191,2]
[378081882,1754718646661,-460.0,0.00022191,2]
[378081884,1754718646670,-462.96444199,0.00022191,2]
[378081886,1754718646680,-460.0,0.00022191,2]
[378081888,1754718646689,-460.0,0.00022191,2]
[378081890,1754718646698,-460.0,0.00022191,2]
[378081892,1754718646707,-460.0,0.00022191,2]
[378081894,1754718646717,-460.0,0.00022191,2]
[378081896,1754718646726,-460.0,0.00022191,2]
[378081898,1754718646735,-460.0,0.00022191,2]
[378081900,1754718646744,-460.0,0.00022191,2]
[378081902,1754718646753,-460.0,0.00022191,2]
[378081904,1754718646762,-460.7479425,0.00022191,2]
[378081906,1754718646771,-460.0,0.00022191,2]
[378081908,1754718646780,-460.0,0.00022191,2]
[378081910,1754718646789,-1028.81,0.00022191,2]
[378081912,1754718646798,-460.0,0.00022191,2]
[378081914,1754718646808,-460.0,0.00022191,2]
[378081916,1754718646817,-1385.66,0.00022191,2]
[378081918,1754718646826,-769.47,0.00022191,2]
[378081919,1754718646835,-462.73187356,0.00022191,2]
[378081921,1754718646845,-460.0,0.00022191,2]
[378081923,1754718646854,-1085.83,0.00022191,2]
[378081926,1754718646863,-460.0,0.00022191,2]
[378081927,1754718646872,-460.0,0.00022191,2]
[378081929,1754718646882,-460.0,0.00022191,2]
[378081931,1754718646891,-460.0,0.00022191,2]
[378081934,1754718646901,-1404.07,0.00022191,2]
[378081935,1754718646910,-460.0,0.00022191,2]
[378081937,1754718646919,-460.0,0.00022191,2]
[378081939,1754718646928,-575.27,0.00022191,2]
[378081941,1754718646937,-460.0,0.00022191,2]
[378081943,1754718646947,-460.0,0.00022191,2]
[378081945,1754718646956,-460.0,0.00022191,2]
[378081947,1754718646966,-460.0,0.00022191,2]
[378081949,1754718646979,-480.89,0.00022191,2]
[378081951,1754718646988,-460.0,0.00022191,2]
[378081953,1754718646997,-460.0,0.00022191,2]
[378081955,1754718647007,-460.0,0.00022191,2]
[378081957,1754718647016,-460.0,0.00022191,2]
[378081959,1754718647026,-460.0,0.00022191,2]
[378081961,1754718647035,-460.0,0.00022191,2]
[378081963,1754718647044,-724.97,0.00022191,2]
[378081965,1754718647056,-460.0,0.00022191,2]
[378081967,1754718647066,-833.04,0.00022191,2]
[378081969,1754718647076,-461.06711374,0.00022191,2]
[378081971,1754718647085,-460.0,0.00022191,2]
[378081973,1754718647093,-551.78,0.00022191,2]
[378081975,1754718647103,-197.80892963,0.00022191,2]
[378081977,1754718647112,-460.0,0.00022191,2]
[378081978,1754718647121,-460.0,0.00022191,2]
[378081981,1754718647131,-648.22,0.00022191,2]
[378081982,1754718647141,-462.59655891,0.00022191,2]
[378081984,1754718647150,-460.0,0.00022191,2]
[378081986,1754718647160,-2838.36,0.00022191,2]
[378081988,1754718647169,-460.0,0.00022191,2]
[378081990,1754718647179,-566.97826364,0.00022191,2]
[378081992,1754718647192,-460.0,0.00022191,2]
[378081994,1754718647201,-532.22,0.00022191,2]
[378081996,1754718647211,-460.0,0.00022191,2]
[378081998,1754718647220,-460.0,0.00022191,2]
[378082000,1754718647230,-460.0,0.00022191,2]
[378082002,1754718647239,-460.0,0.00022191,2]
[378082004,1754718647248,-460.0,0.00022191,2]
[378082006,1754718647257,-460.0,0.00022191,2]
[378082008,1754718647267,-460.0,0.00022191,2]
[378082010,1754718647277,-1274.42,0.00022191,2]
[378082012,1754718647286,-26128.67635326,0.00022232,2]
[378082014,1754718647295,-1054.97459263,0.00022321,2]
[378082016,1754718647305,-1000.0,0.00022321,2]
[378082018,1754718647314,-1000.0,0.00022321,2]
[378082020,1754718647324,-831.85786373,0.00022321,2]
[378082022,1754718647333,-1000.0,0.00022321,2]
[378082024,1754718647343,-500.0,0.00022321,2]
[378082026,1754718647352,-1000.0,0.00022321,2]
[378082028,1754718647361,-500.98423419,0.00022321,2]
[378082030,1754718647370,-1000.0,0.00022321,2]
[378082031,1754718647379,-516.7285694,0.00022321,2]
[378082033,1754718647390,-1000.0,0.00022321,2]
[378082035,1754718647399,-1000.0,0.00022321,2]
[378082037,1754718647408,-503.98869274,0.00022321,2]
[378082039,1754718647418,-449.38652102,0.00022321,2]
[378082041,1754718647427,-1000.0,0.00022321,2]
[378082043,1754718647436,-471.80286535,0.00022321,2]
[378082045,1754718647446,-1024.05187701,0.00022321,2]
[378082047,1754718647455,-503.7279548,0.00022321,2]
[378082049,1754718647464,-433.59216183,0.00022321,2]
[378082051,1754718647474,-1106.07813515,0.00022321,2]
[378082053,1754718647483,-1038.63950387,0.00022321,2]
[378082055,1754718647492,-1000.0,0.00022321,2]
[378082057,1754718647501,-1000.0,0.00022321,2]
[378082059,1754718647512,-1000.0,0.00022321,2]
[378082061,1754718647521,-1000.0,0.00022321,2]
[378082063,1754718647530,-1138.29836182,0.00022321,2]
[378082065,1754718647540,-500.0,0.00022321,2]
[378082067,1754718647550,-151.0,0.000224,10]
[378082069,1754718647559,-151.0,0.000224,9]
[378082071,1754718647569,-460.0,0.00022465,2]
[378082073,1754718647577,-463.3595935,0.00022465,2]
[378082075,1754718647587,-461.80266231,0.00022465,2]
[378082077,1754718647596,-460.0,0.00022465,2]
[378082079,1754718647606,-460.0,0.00022465,2]
[378082081,1754718647615,-457.36172983,0.00022465,2]
[378082083,1754718647625,-460.0,0.00022465,2]
[378082085,1754718647634,-460.0,0.00022465,2]
[378082087,1754718647643,-182.83921931,0.00022465,2]
[378082089,1754718647653,-472.50294223,0.00022465,2]
[378082091,1754718647663,-471.24203356,0.00022465,2]
[378082093,1754718647671,-460.0,0.00022465,2]
[378082095,1754718647681,-460.0,0.00022465,2]
[378082097,1754718647691,-460.0,0.00022465,2]
[378082099,1754718647700,-460.0,0.00022465,2]
[378082101,1754718647709,-460.0,0.00022465,2]
[378082103,1754718647718,-460.0,0.00022465,2]
[378082105,1754718647727,-460.0,0.00022465,2]
[378082107,1754718647737,-460.0,0.00022465,2]
[378082109,1754718647746,-486.22492855,0.00022465,2]
[378082111,1754718647755,-460.0,0.00022465,2]
[378082113,1754718647765,-460.0,0.00022465,2]
[378082115,1754718647774,-460.0,0.00022465,2]
[378082117,1754718647784,-460.0,0.00022465,2]
[378082118,1754718647793,-460.0,0.00022465,2]
[378082120,1754718647802,-460.0,0.00022465,2]
[378082122,1754718647811,-460.0,0.00022465,2]
[378082124,1754718647820,-460.0,0.00022465,2]
[378082126,1754718647829,-460.0,0.00022465,2]
[378082128,1754718647838,-460.0,0.00022465,2]
[378082130,1754718647847,-460.0,0.00022465,2]
[378082132,1754718647856,-460.0,0.00022465,2]
[378082134,1754718647865,-460.0,0.00022465,2]
[378082136,1754718647874,-610.73,0.00022465,2]
[378082138,1754718647883,-460.0,0.00022465,2]
[378082140,1754718647892,-460.0,0.00022465,2]
[378082142,1754718647901,-460.0,0.00022465,2]
[378082144,1754718647910,-460.0,0.00022465,2]
[378082146,1754718647919,-460.0,0.00022465,2]
[378082148,1754718647929,-460.0,0.00022465,2]
[378082150,1754718647937,-460.0,0.00022465,2]
[378082152,1754718647946,-460.0,0.00022465,2]
[378082154,1754718647956,-460.0,0.00022465,2]
[378082156,1754718647965,-475.86284599,0.00022465,2]
[378082158,1754718647977,-460.0,0.00022465,2]
[378082160,1754718647986,-460.0,0.00022465,2]
[378082162,1754718647995,-667.01,0.00022465,2]
[378082163,1754718648004,-460.0,0.00022465,2]
[378082165,1754718648014,-460.0,0.00022465,2]
[378082167,1754718648024,-460.0,0.00022465,2]
[378082170,1754718648034,-460.0,0.00022465,2]
[378082171,1754718648044,-460.0,0.00022465,2]
[378082173,1754718648055,-460.0,0.00022465,2]
[378082175,1754718648066,-460.0,0.00022465,2]
[378082177,1754718648075,-460.0,0.00022465,2]
[378082179,1754718648085,-460.0,0.00022465,2]
[378082181,1754718648094,-460.0,0.00022465,2]
[378082183,1754718648104,-460.0,0.00022465,2]
[378082185,1754718648114,-460.0,0.00022465,2]
[378082187,1754718648123,-460.0,0.00022465,2]
[378082189,1754718648132,-460.0,0.00022465,2]
[378082191,1754718648143,-486.56312273,0.00022465,2]
[378082193,1754718648153,-460.0,0.00022465,2]
[378082194,1754718648162,-460.0,0.00022465,2]
[378082195,1754718648172,-460.0,0.00022465,2]
[378082196,1754718648182,-460.0,0.00022465,2]
[378082197,1754718648191,-460.0,0.00022465,2]
[378082198,1754718648201,-460.0,0.00022465,2]
[378082199,1754718648211,-460.0,0.00022465,2]
[378082200,1754718648221,-460.0,0.00022465,2]
[378082201,1754718648231,-524.85364328,0.00022465,2]
[378082202,1754718648240,-460.0,0.00022465,2]
[378082203,1754718648249,-460.0,0.00022465,2]
[378082204,1754718648259,-460.0,0.00022465,2]
[378082205,1754718648269,-460.0,0.00022465,2]
[378082206,1754718648278,-460.0,0.00022465,2]
[378082207,1754718648287,-940.82,0.00022465,2]
[378082208,1754718648296,-460.0,0.00022465,2]
[378082209,1754718648306,-861.6,0.00022465,2]
[378082210,1754718648316,-837.05,0.00022465,2]
[378082211,1754718648325,-460.0,0.00022465,2]
[378082212,1754718648335,-460.0,0.00022465,2]
[378082214,1754718648344,-460.0,0.00022465,2]
[378082215,1754718648355,-1005.24,0.00022465,2]
[378082217,1754718648364,-575.98,0.00022465,2]
[378082219,1754718648374,-460.0,0.00022465,2]
[378082221,1754718648383,-565.67136484,0.00022465,2]
[378082223,1754718648393,-460.0,0.00022465,2]
[378082225,1754718648402,-460.0,0.00022465,2]
[378082227,1754718648412,-1889.53,0.00022465,2]
[378082229,1754718648421,-460.0,0.00022465,2]
[378082231,1754718648430,-460.0,0.00022465,2]
[378082233,1754718648440,-460.0,0.00022465,2]
[378082235,1754718648449,-545.75,0.00022465,2]
[378082237,1754718648459,-460.0,0.00022465,2]
[378082239,1754718648468,-465.5,0.00022465,2]
[378082241,1754718648477,-560.62,0.00022465,2]
[378082243,1754718648488,-460.0,0.00022465,2]
[378082245,1754718648497,-460.0,0.00022465,2]
[378082247,1754718648507,-460.0,0.00022465,2]
[378082249,1754718648515,-345.24307418,0.00022465,2]
[378082251,1754718648525,-460.0,0.00022465,2]
[378082253,1754718648534,-460.0,0.00022465,2]
[378082255,1754718648543,-985.45,0.00022465,2]
[378082257,1754718648552,-478.96,0.00022465,2]
[378082259,1754718648562,-460.0,0.00022465,2]
[378082261,1754718648572,-460.0,0.00022465,2]
[378082263,1754718648581,-1794.59,0.00022465,2]
[378082265,1754718648591,-460.0,0.00022465,2]
[378082267,1754718648600,-460.0,0.00022465,2]
[378082269,1754718648611,-460.0,0.00022465,2]
[378082271,1754718648621,-532.69,0.00022465,2]
[378082273,1754718648630,-460.0,0.00022465,2]
[378082275,1754718648640,-1214.97,0.00022465,2]
[378082277,1754718648650,-470.11212147,0.00022465,2]
[378082279,1754718648659,-460.0,0.00022465,2]
[378082281,1754718648668,-4089.86,0.00022465,2]
[378082283,1754718648678,-460.0,0.00022465,2]
[378082285,1754718648687,-460.0,0.00022465,2]
[378082287,1754718648696,-460.0,0.00022465,2]
[378082289,1754718648706,-460.0,0.00022465,2]
[378082291,1754718648715,-217.1684481,0.00022465,2]
[378082293,1754718648724,-460.0,0.00022465,2]
[378082295,1754718648740,-460.0,0.00022465,2]
[378082297,1754718648750,-460.0,0.00022465,2]
[378082299,1754718648759,-460.0,0.00022465,2]
[378082301,1754718648769,-460.0,0.00022465,2]
[378082303,1754718648782,-460.0,0.00022465,2]
[378082305,1754718648794,-645.49,0.00022465,2]
[378082307,1754718648803,-460.0,0.00022465,2]
[378082309,1754718648816,-1659.93,0.00022465,2]
[378082311,1754718648828,-460.0,0.00022465,2]
[378082313,1754718648837,-1498.54,0.00022465,2]
[378082315,1754718648848,-460.0,0.00022465,2]
[378082317,1754718648857,-460.0,0.00022465,2]
[378082319,1754718648867,-460.0,0.00022465,2]
[378082321,1754718648876,-460.0,0.00022465,2]
[378082323,1754718648885,-460.0,0.00022465,2]
[378082325,1754718648894,-460.0,0.00022465,2]
[378082327,1754718648904,-460.0,0.00022465,2]
[378082329,1754718648914,-460.0,0.00022465,2]
[378082331,1754718648923,-460.0,0.00022465,2]
[378082333,1754718648932,-460.0,0.00022465,2]
[378082335,1754718648941,-460.0,0.00022465,2]
[378082337,1754718648950,-460.0,0.00022465,2]
[378082339,1754718648960,-460.0,0.00022465,2]
[378082341,1754718648971,-460.0,0.00022465,2]
[378082343,1754718648985,-460.0,0.00022465,2]
[378082345,1754718648996,-460.0,0.00022465,2]
[378082347,1754718649007,-460.0,0.00022465,2]
[378082349,1754718649016,-1028.81,0.00022465,2]
[378082351,1754718649025,-460.0,0.00022465,2]
[378082353,1754718649035,-460.0,0.00022465,2]
[378082355,1754718649045,-1385.66,0.00022465,2]
[378082369,1754718649170,-769.47,0.00022465,2]
[378082371,1754718649180,-1085.83,0.00022465,2]
[378082373,1754718649189,-460.0,0.00022465,2]
[378082375,1754718649199,-460.0,0.00022465,2]
[378082377,1754718649208,-469.67775498,0.00022465,2]
[378082379,1754718649218,-460.0,0.00022465,2]
[378082381,1754718649228,-1404.07,0.00022465,2]
[378082383,1754718649237,-460.0,0.00022465,2]
[378082385,1754718649246,-479.44665692,0.00022465,2]
[378082387,1754718649255,-460.0,0.00022465,2]
[378082389,1754718649264,-575.27,0.00022465,2]
[378082391,1754718649273,-513.96958633,0.00022465,2]
[378082393,1754718649283,-460.0,0.00022465,2]
[378082395,1754718649292,-460.0,0.00022465,2]
[378082397,1754718649302,-460.0,0.00022465,2]
[378082399,1754718649312,-480.89,0.00022465,2]
[378082401,1754718649321,-460.0,0.00022465,2]
[378082403,1754718649331,-460.0,0.00022465,2]
[378082405,1754718649340,-460.0,0.00022465,2]
[378082407,1754718649349,-460.0,0.00022465,2]
[378082409,1754718649359,-724.97,0.00022465,2]
[378082411,1754718649368,-460.0,0.00022465,2]
[378082413,1754718649377,-833.04,0.00022465,2]
[378082415,1754718649386,-460.0,0.00022465,2]
[378082417,1754718649396,-551.78,0.00022465,2]
[378082419,1754718649406,-460.0,0.00022465,2]
[378082421,1754718649415,-460.0,0.00022465,2]
[378082423,1754718649424,-648.22,0.00022465,2]
[378082425,1754718649433,-2838.36,0.00022465,2]
[378082427,1754718649442,-460.0,0.00022465,2]
[378082429,1754718649452,-532.22,0.00022465,2]
[378082431,1754718649461,-155.79250762,0.00022465,2]
[378082433,1754718649470,-460.0,0.00022465,2]
[378082435,1754718649480,-460.0,0.00022465,2]
[378082437,1754718649489,-460.0,0.00022465,2]
[378082439,1754718649499,-151.0,0.000225,6]
[378082441,1754718649508,-1024.30002253,0.00022521,2]
[378082443,1754718649517,-1000.0,0.00022521,2]
[378082445,1754718649526,-1000.0,0.00022521,2]
[378082447,1754718649536,-250.0,0.00022521,2]
[378082449,1754718649545,-396.13352281,0.00022521,2]
[378082451,1754718649555,-151.0,0.00022521,7]
[378082453,1754718649564,-151.0,0.000226,9]
[378082455,1754718649574,-501.48954951,0.00022721,2]
[378082457,1754718649583,-1004.91536897,0.00022721,2]
[378082459,1754718649592,-411.12864562,0.00022721,2]
[378082461,1754718649602,-169.43829471,0.00022721,2]
[378082463,1754718649613,-508.11371333,0.00022721,2]
[378082465,1754718649622,-910.00511873,0.00022721,2]
[378082467,1754718649632,-1200.0,0.00022721,2]
[378082469,1754718649641,-1000.0,0.00022721,2]
[378082471,1754718649650,-502.14349495,0.00022721,2]
[378082473,1754718649660,-1000.0,0.00022721,2]
[378082475,1754718649670,-1001.3331216,0.00022721,2]
[378082477,1754718649679,-501.21377576,0.00022721,2]
[378082479,1754718649689,-1000.0,0.00022721,2]
[378082481,1754718649698,-1000.0,0.00022721,2]
[378082483,1754718649708,-1000.0,0.00022721,2]
[378082485,1754718649717,-205.90481094,0.00022721,2]
[378082487,1754718649726,-419.10996033,0.00022721,2]
[378082489,1754718649739,-1000.92627552,0.00022721,2]
[378082491,1754718649749,-1000.0,0.00022721,2]
[378082493,1754718649758,-1000.0,0.00022721,2]
[378082495,1754718649768,-1000.0,0.00022721,2]
[378082497,1754718649777,-1001.22332869,0.00022721,2]
[378082499,1754718649786,-598.57718967,0.00022721,2]
[378082501,1754718649796,-1000.0,0.00022721,2]
[378082503,1754718649805,-1000.0,0.00022721,2]
[378082505,1754718649815,-1000.0,0.00022721,2]
[378082507,1754718649824,-503.69426877,0.00022721,2]
[378082509,1754718649834,-1000.0,0.00022721,2]
[378082510,1754718649843,-501.21025951,0.00022721,2]
[378082511,1754718649852,-1000.0,0.00022721,2]
[378082512,1754718649862,-1000.0,0.00022721,2]
[378082513,1754718649876,-1001.64131963,0.00022721,2]
[378082514,1754718649888,-814.28283868,0.00022721,2]
[378082515,1754718649897,-1000.0,0.00022721,2]
[378082516,1754718649907,-1002.50505203,0.00022721,2]
[378082517,1754718649917,-501.97502455,0.00022721,2]
[378082518,1754718649926,-884.37993711,0.00022721,2]
[378082519,1754718649935,-569.07647635,0.00022721,2]
[378082520,1754718649945,-1000.0,0.00022721,2]
[378082521,1754718649955,-1106.44966451,0.00022721,2]
[378082522,1754718649964,-1001.64750758,0.00022721,2]
[378082523,1754718649978,-501.02231364,0.00022721,2]
[378082524,1754718649987,-501.03349238,0.00022721,2]